bitfinex/quotes_SOLUSD_20260115
["timestamp","ask_amount","ask_price","bid_price","bid_amount"]
[1768492374545,9.5710562,142.09,142.0,2.13272364]
[1768492374849,13.25682447,142.08,142.02,2.13272364]
[1768492375437,13.25682447,142.08,142.03,9.17348967]
[1768492375636,13.25682447,142.07,142.03,2.13272364]
[1768492376142,2.53295937,142.09,142.03,2.13272364]
[1768492376348,13.25682447,142.07,142.03,2.13272364]
[1768492377250,13.25682447,142.08,142.03,2.13272364]
[1768492377547,13.25682447,142.06,142.01,2.13272364]
[1768492378151,13.25682447,142.06,142.01,9.17419842]
[1768492378339,13.25682447,142.06,142.01,2.13272364]
[1768492379252,2.09495938,142.07,142.01,2.13272364]
[1768492379428,13.25682447,142.03,141.98,2.13272364]
[1768492379746,13.25682447,142.03,141.98,9.1757867]
[1768492380440,13.25682447,142.03,141.99,7.04267331]
[1768492380936,13.25682447,142.02,141.98,2.13272364]
[1768492381137,2.09495938,142.03,141.98,2.13272364]
[1768492381341,13.25682447,142.02,141.98,2.13272364]
[1768492381532,2.09495938,142.07,142.0,2.13272364]
[1768492381732,2.53295937,142.09,142.02,2.13272364]
[1768492381924,15.78978384,142.09,142.03,2.13272364]
[1768492382430,2.53295937,142.09,142.03,2.13272364]
[1768492382626,15.78978384,142.09,142.03,2.13272364]
[1768492382855,13.25682447,142.08,142.03,2.13272364]
[1768492383463,13.25682447,142.07,142.02,7.04105243]
[1768492383758,2.09495938,142.08,142.02,9.17377607]
[1768492383960,2.09495938,142.08,142.03,9.17347338]
[1768492384154,0.43799999,142.09,142.03,9.17347338]
[1768492384155,0.43799999,142.09,142.05,2.13272364]
[1768492384327,0.43799999,142.09,142.05,13.25682447]
[1768492384645,0.43799999,142.09,142.06,2.13272364]
[1768492385242,0.43799999,142.09,142.04,2.13272364]
[1768492385442,2.09495938,142.08,142.03,9.17347338]
[1768492385649,13.25682447,142.08,142.04,2.13272364]
[1768492385851,28.62978384,142.09,142.04,2.13272364]
[1768492386350,15.35178385,142.13,142.06,2.13272364]
[1768492386551,2.09495938,142.12,142.06,2.13272364]
[1768492386757,15.35178385,142.11,142.04,2.13272364]
[1768492387054,15.35178385,142.11,142.03,24.64266482]
[1768492387055,13.25682447,142.1,142.05,2.13272364]
[1768492387349,2.09495938,142.11,142.05,2.13272364]
[1768492387554,13.25682447,142.1,142.05,2.13272364]
[1768492387959,13.25682447,142.09,142.05,2.13272364]
[1768492388338,13.25682447,142.09,142.04,7.03985059]
[1768492388539,2.09495938,142.1,142.04,7.03985059]
[1768492388757,2.09495938,142.07,142.01,9.17409653]
[1768492389171,15.35178385,142.07,142.02,9.17394932]
[1768492389648,12.84,142.09,142.03,9.17346835]
[1768492389831,13.25682447,142.1,142.04,2.13272364]
[1768492390029,2.09495938,142.12,142.04,2.13272364]
[1768492390361,12.84,142.13,142.06,2.13272364]
[1768492390534,13.25682447,142.12,142.07,2.13272364]
[1768492390859,12.84,142.13,142.07,2.13272364]
[1768492391045,13.25682447,142.12,142.07,2.13272364]
[1768492391647,13.25682447,142.12,142.07,9.17139382]
[1768492391944,13.25682447,142.11,142.07,9.17139382]
[1768492392146,14.93495938,142.13,142.07,9.17139382]
[1768492392458,13.25682447,142.11,142.07,7.03867018]
[1768492392658,2.09495938,142.12,142.07,7.03867018]
[1768492392859,13.25682447,142.11,142.07,7.03867018]
[1768492393059,2.09495938,142.12,142.07,9.17139382]
[1768492393234,12.84,142.13,142.07,9.17139382]
[1768492393441,12.84,142.13,142.08,2.13272364]
[1768492393654,13.25682447,142.12,142.08,2.13272364]
[1768492394141,14.93495938,142.13,142.08,2.13272364]
[1768492394348,14.93495938,142.13,142.08,9.17078036]
[1768492394549,28.19178385,142.13,142.08,9.17078036]
[1768492394938,14.93495938,142.13,142.08,9.17078036]
[1768492395260,28.19178385,142.13,142.08,9.17078036]
[1768492396253,2.22000002,142.16,142.11,2.13272364]
[1768492396440,17.57178387,142.16,142.11,2.13272364]
[1768492396758,4.3149594,142.16,142.11,2.13272364]
[1768492396960,2.09495938,142.14,142.09,2.13272364]
[1768492397166,13.25682447,142.13,142.09,2.13272364]
[1768492397347,2.09495938,142.14,142.09,2.13272364]
[1768492397662,13.25682447,142.13,142.09,2.13272364]
[1768492397957,15.35178385,142.12,142.07,9.17137574]
[1768492398161,15.35178385,142.12,142.07,2.13272364]
[1768492398346,2.09495938,142.12,142.07,2.13272364]
[1768492398658,15.35178385,142.12,142.07,9.17149892]
[1768492399062,13.25682447,142.11,142.07,2.13272364]
[1768492399267,15.35178385,142.12,142.07,9.17146341]
[1768492399954,15.35178385,142.12,142.07,2.13272364]
[1768492400559,2.09495938,142.12,142.07,2.13272364]
[1768492400758,2.22000002,142.16,142.11,2.05025953]
[1768492401068,2.22000002,142.16,142.12,2.05025953]
[1768492401840,2.22000002,142.16,142.13,2.05025953]
[1768492402045,22.40293864,142.2,142.14,2.05025953]
[1768492402241,1.91376183,142.19,142.12,2.05025953]
[1768492402557,7.23235234,142.2,142.12,2.05025953]
[1768492402558,15.1705863,142.18,142.12,2.05025953]
[1768492402869,1.91376183,142.18,142.13,2.05025953]
[1768492403055,0.2,142.2,142.14,2.05025953]
[1768492403266,13.25682447,142.19,142.14,2.05025953]
[1768492403644,22.20359466,142.19,142.14,2.05025953]
[1768492404450,20.07247035,142.2,142.14,2.05025953]
[1768492404650,35.3310632,142.2,142.14,2.05025953]
[1768492404852,22.07423873,142.2,142.14,9.08552637]
[1768492405050,22.07423873,142.2,142.14,2.05025953]
[1768492405051,13.25682447,142.19,142.14,2.05025953]
[1768492405266,22.07423873,142.2,142.14,2.05025953]
[1768492405568,35.3310632,142.2,142.14,2.05025953]
[1768492405948,22.07423873,142.2,142.14,2.05025953]
[1768492406150,35.3310632,142.2,142.14,2.05025953]
[1768492406542,22.07423873,142.2,142.14,9.08555147]
[1768492406746,15.04176838,142.2,142.15,2.05429397]
[1768492406947,15.25859285,142.19,142.13,9.0899138]
[1768492407148,15.25859285,142.19,142.14,2.05429397]
[1768492407352,2.00176838,142.19,142.14,2.05429397]
[1768492407774,20.48926827,142.2,142.15,2.05429397]
[1768492407775,0.2,142.2,142.15,2.05429397]
[1768492408575,0.2,142.2,142.16,2.05429397]
[1768492410276,15.45859285,142.2,142.15,2.05429397]
[1768492410582,0.2,142.2,142.16,2.05429397]
[1768492410958,2.00176838,142.18,142.09,2.05429397]
[1768492411162,2.00176838,142.17,142.12,2.05429397]
[1768492411350,15.25859285,142.17,142.12,2.05429397]
[1768492412356,2.00176838,142.17,142.12,9.09059863]
[1768492412579,15.25859285,142.17,142.12,2.05429397]
[1768492413155,22.29246247,142.17,142.12,2.05429397]
[1768492413361,13.25682447,142.14,142.1,2.05429397]
[1768492413969,15.25859285,142.15,142.1,2.05429397]
[1768492415683,2.00176838,142.14,142.09,2.05429397]
[1768492415875,15.25859285,142.14,142.09,2.05429397]
[1768492416078,15.25859285,142.13,142.07,9.09289182]
[1768492416278,15.25859285,142.13,142.08,9.09253983]
[1768492416678,2.00176838,142.13,142.08,9.09253983]
[1768492416880,15.25859285,142.13,142.08,9.09253983]
[1768492417773,2.00176838,142.13,142.08,9.09253983]
[1768492417986,15.25859285,142.13,142.08,9.09253983]
[1768492419185,2.00176838,142.13,142.09,2.05429397]
[1768492419359,15.25859285,142.13,142.09,2.05429397]
[1768492419682,15.25859285,142.14,142.09,2.05429397]
[1768492419872,13.25682447,142.13,142.09,2.05429397]
[1768492420178,13.25682447,142.13,142.07,7.03878369]
[1768492420179,15.25859285,142.13,142.08,2.05429397]
[1768492420493,15.25859285,142.12,142.07,9.09307766]
[1768492420668,15.25859285,142.12,142.07,7.03878369]
[1768492420860,13.19682448,142.12,142.08,2.05429397]
[1768492421063,13.25682447,142.13,142.08,2.05429397]
[1768492421670,9.03709428,142.14,142.08,9.09250332]
[1768492421872,13.25682447,142.13,142.08,9.09250332]
[1768492422287,2.00176838,142.12,142.07,7.03874139]
[1768492422466,15.25859285,142.12,142.07,9.09303536]
[1768492422666,15.25859285,142.12,142.07,2.05429397]
[1768492422878,2.00176838,142.12,142.07,9.09296415]
[1768492423084,2.00176838,142.12,142.07,2.05429397]
[1768492423279,2.00176838,142.17,142.1,2.05429397]
[1768492423591,13.25682447,142.16,142.11,2.05429397]
[1768492425380,9.03576483,142.17,142.11,9.09106163]
[1768492425575,15.25859285,142.14,142.1,7.03708102]
[1768492425889,2.00176838,142.12,142.07,14.89429397]
[1768492426070,15.25859285,142.12,142.07,21.93274616]
[1768492426693,2.00176838,142.12,142.07,21.93274616]
[1768492426998,15.25859285,142.12,142.07,21.93274616]
[1768492427164,13.25682447,142.11,142.07,2.05429397]
[1768492427487,2.00176838,142.11,142.07,2.05429397]
[1768492427677,15.25859285,142.11,142.07,2.05429397]
[1768492429294,2.00176838,142.11,142.07,2.05429397]
[1768492429887,2.00176838,142.11,142.07,9.09266882]
[1768492430077,15.25859285,142.11,142.07,2.05429397]
[1768492430281,2.00176838,142.12,142.07,9.09302868]
[1768492430474,15.25859285,142.12,142.07,9.09302868]
[1768492430687,15.25859285,142.1,142.05,21.93374736]
[1768492431488,2.00176838,142.1,142.06,7.03917315]
[1768492431694,2.00176838,142.1,142.05,2.05429397]
[1768492431869,1.91111826,142.12,142.06,9.07870915]
[1768492432073,15.16794273,142.11,142.06,9.07870915]
[1768492432293,15.16794273,142.11,142.07,7.03870924]
[1768492432694,13.25682447,142.12,142.07,9.07840976]
[1768492432892,13.25682447,142.13,142.08,2.03970052]
[1768492433078,15.16794273,142.15,142.09,2.03970052]
[1768492433486,1.91111826,142.15,142.09,2.03970052]
[1768492433689,15.16794273,142.15,142.09,2.03970052]
[1768492434472,13.25682447,142.16,142.11,2.03970052]
[1768492434678,15.16794273,142.15,142.11,2.03970052]
[1768492434879,1.91111826,142.13,142.08,7.0380862]
[1768492435099,15.16794273,142.11,142.06,2.03970052]
[1768492435306,15.16794273,142.11,142.06,9.07869683]
[1768492435307,10.06104069,142.11,142.06,9.07869683]
[1768492435998,8.14992243,142.12,142.07,2.03970052]
[1768492436179,1.91111826,142.13,142.07,2.03970052]
[1768492436375,8.14992243,142.12,142.07,2.03970052]
[1768492436575,1.91111826,142.15,142.09,2.03970052]
[1768492436774,10.06104069,142.15,142.1,2.03970052]
[1768492437700,10.06104069,142.12,142.07,7.03866546]
[1768492437998,10.06104069,142.12,142.07,21.91836598]
[1768492438401,8.14992243,142.11,142.07,2.03970052]
[1768492439300,8.14992243,142.11,142.07,9.07846169]
[1768492439503,1.91111826,142.12,142.07,9.07846169]
[1768492439701,8.14992243,142.11,142.07,9.07846169]
[1768492440080,10.06104069,142.12,142.07,9.07846169]
[1768492440295,8.14992243,142.12,142.08,2.03970052]
[1768492440583,10.06104069,142.13,142.08,2.03970052]
[1768492440984,10.06104069,142.13,142.08,9.07797385]
[1768492440985,1.91111826,142.13,142.08,9.07797385]
[1768492441401,10.06104069,142.13,142.08,9.07797385]
[1768492441903,1.91111826,142.11,142.06,2.03970052]
[1768492442204,1.91111826,142.13,142.08,7.03814793]
[1768492442391,10.06104069,142.13,142.08,9.07784845]
[1768492442907,1.91111826,142.17,142.11,9.07650299]
[1768492443083,10.06104069,142.16,142.11,9.07650299]
[1768492444099,1.91111826,142.16,142.11,9.07650299]
[1768492444398,1.91111826,142.15,142.11,9.07650299]
[1768492445087,10.06104069,142.17,142.12,2.03970052]
[1768492445288,1.91111826,142.17,142.12,2.03970052]
[1768492445700,8.14992243,142.18,142.13,2.03970052]
[1768492445891,2.64911823,142.19,142.13,8.14992243]
[1768492446093,8.14992243,142.18,142.14,2.03970052]
[1768492446402,8.14992243,142.17,142.12,14.87970052]
[1768492446607,10.06104069,142.17,142.12,21.91584231]
[1768492447212,1.91111826,142.17,142.13,7.03566505]
[1768492448199,2.64911823,142.19,142.13,9.07536557]
[1768492448403,8.14992243,142.18,142.13,9.07536557]
[1768492448712,1.91111826,142.17,142.12,7.03626768]
[1768492449043,10.06104069,142.14,142.08,2.03970052]
[1768492449192,1.91111826,142.14,142.08,2.03970052]
[1768492449396,10.06104069,142.14,142.08,2.03970052]
[1768492449709,10.06104069,142.14,142.09,2.03970052]
[1768492449892,1.91111826,142.13,142.09,2.03970052]
[1768492450206,10.06104069,142.1,142.05,2.03970052]
[1768492450390,8.14992243,142.09,142.05,2.03970052]
[1768492450585,1.91111826,142.1,142.05,2.03970052]
[1768492450790,10.06104069,142.1,142.05,9.07938554]
[1768492451088,1.91111826,142.07,142.02,7.04120793]
[1768492451295,1.85111827,142.07,142.02,21.92090845]
[1768492451510,7.03750355,142.1,142.03,9.08040837]
[1768492451712,8.14992243,142.08,142.03,9.08040837]
[1768492453617,8.14992243,142.04,142.0,7.04194644]
[1768492453921,10.06104069,142.05,142.01,7.04170545]
[1768492454126,1.91111826,142.05,142.0,9.08188137]
[1768492454308,12.84,142.1,142.03,2.03970052]
[1768492454309,1.91111826,142.09,142.03,2.03970052]
[1768492454512,8.14992243,142.1,142.04,2.03970052]
[1768492454819,8.14992243,142.09,142.04,2.03970052]
[1768492455915,1.91111826,142.1,142.04,2.03970052]
[1768492456119,10.06104069,142.1,142.04,2.03970052]
[1768492456617,10.06104069,142.1,142.05,7.03977472]
[1768492456818,10.06104069,142.1,142.05,9.07947524]
[1768492459042,1.91111826,142.1,142.05,9.07947524]
[1768492459543,10.06104069,142.1,142.05,9.07947524]
[1768492459907,8.14992243,142.09,142.05,9.07947524]
[1768492460140,10.06104069,142.09,142.05,9.07947524]
[1768492460736,1.8952927,142.1,142.05,7.03977472]
[1768492460939,1.8952927,142.08,142.04,7.04027034]
[1768492461534,8.14992243,142.09,142.04,9.00361601]
[1768492461733,10.04521513,142.09,142.04,9.00361601]
[1768492461933,1.8952927,142.07,142.02,14.80334567]
[1768492462127,10.04521513,142.07,142.03,7.04073502]
[1768492462432,1.83529271,142.07,142.03,9.00408069]
[1768492462637,8.14992243,142.08,142.03,9.00408069]
[1768492462838,7.036498,142.12,142.05,8.14992243]
[1768492463025,12.38005821,142.13,142.06,17.15214214]
[1768492463232,8.14992243,142.12,142.06,17.15214214]
[1768492463545,11.47681379,142.15,142.07,1.96334567]
[1768492463734,8.14992243,142.12,142.07,1.96334567]
[1768492464092,4.44164761,142.15,142.07,1.96334567]
[1768492464216,0.2,142.2,142.13,1.96334567]
[1768492464414,10.24521513,142.2,142.14,10.10087721]
[1768492464716,8.14992243,142.19,142.15,1.95095478]
[1768492464916,2.0952927,142.2,142.12,10.10087721]
[1768492464917,10.15585075,142.18,142.12,10.10087721]
[1768492465224,2.00592832,142.16,142.11,7.03660684]
[1768492465425,8.14992243,142.16,142.1,21.82808377]
[1768492465627,2.00592832,142.15,142.1,8.98808377]
[1768492465933,10.15585075,142.15,142.1,8.98808377]
[1768492466325,10.15585075,142.14,142.1,7.03712899]
[1768492466735,8.14992243,142.11,142.06,1.95095478]
[1768492466939,10.15585075,142.11,142.06,7.03913916]
[1768492467318,35.77213968,142.15,142.07,1.95095478]
[1768492467319,2.00592832,142.13,142.07,1.95095478]
[1768492467523,2.00592832,142.12,142.07,1.95095478]
[1768492468632,10.15585075,142.12,142.07,1.95095478]
[1768492469033,2.00592832,142.11,142.06,7.03913916]
[1768492469222,10.15585075,142.11,142.06,8.99009394]
[1768492469424,8.14992243,142.1,142.05,7.03968544]
[1768492470248,9.04290203,142.11,142.05,7.03968544]
[1768492470445,10.15585075,142.09,142.04,8.99103276]
[1768492470627,2.00592832,142.09,142.04,8.99103276]
[1768492470941,2.00592832,142.09,142.04,1.95095478]
[1768492471154,8.14992243,142.1,142.04,10.10087721]
[1768492471353,9.04189596,142.13,142.05,1.95095478]
[1768492471522,9.04189596,142.13,142.06,1.95095478]
[1768492471523,10.15585075,142.12,142.06,1.95095478]
[1768492471851,8.14992243,142.11,142.06,1.95095478]
[1768492472346,10.15585075,142.11,142.06,1.95095478]
[1768492473421,8.14992243,142.1,142.06,1.95095478]
[1768492473927,17.19314842,142.1,142.04,1.95095478]
[1768492474128,8.14992243,142.09,142.04,8.99093093]
[1768492475219,2.00592832,142.09,142.04,8.99093093]
[1768492475423,10.15585075,142.09,142.04,8.99093093]
[1768492476152,2.00592832,142.09,142.04,8.99093093]
[1768492476452,10.15585075,142.09,142.04,8.99093093]
[1768492476938,10.15585075,142.08,142.03,19.88067892]
[1768492477130,8.14992243,142.06,142.02,8.99191011]
[1768492478357,10.15585075,142.07,142.02,8.99191011]
[1768492478530,7.0379179,142.09,142.0,38.59491493]
[1768492478531,2.00592832,142.12,142.04,1.95095478]
[1768492478727,8.14992243,142.1,142.04,1.95095478]
[1768492478927,8.14992243,142.09,142.04,1.95095478]
[1768492479123,8.14992243,142.09,142.04,8.99114047]
[1768492479324,2.00592832,142.1,142.04,8.99114047]
[1768492479546,2.00592832,142.12,142.07,1.95095478]
[1768492479735,10.15585075,142.12,142.07,1.95095478]
[1768492481048,2.00592832,142.12,142.07,8.9895552]
[1768492481245,10.15585075,142.12,142.07,8.9895552]
[1768492481550,8.14992243,142.13,142.08,1.95095478]
[1768492482943,8.14992243,142.13,142.08,8.98901338]
[1768492483155,9.04130556,142.14,142.09,1.95095478]
[1768492483357,8.14992243,142.13,142.09,1.95095478]
[1768492483549,8.14992243,142.12,142.09,1.95095478]
[1768492483750,9.04130556,142.14,142.09,1.95095478]
[1768492483947,8.14992243,142.13,142.09,1.95095478]
[1768492484252,10.15585075,142.12,142.07,8.9895227]
[1768492484648,10.15585075,142.11,142.06,7.03906883]
[1768492484952,2.00592832,142.1,142.05,8.99053444]
[1768492485127,2.00592832,142.1,142.05,17.14045687]
[1768492485331,2.00592832,142.14,142.08,1.95095478]
[1768492485554,8.14992243,142.13,142.08,1.95095478]
[1768492486252,10.15585075,142.14,142.08,1.95095478]
[1768492486559,2.00592832,142.11,142.06,1.95095478]
[1768492486741,8.14992243,142.12,142.06,1.95095478]
[1768492486942,2.00592832,142.13,142.06,1.95095478]
[1768492487155,8.14992243,142.12,142.06,1.95095478]
[1768492487354,7.46485771,142.15,142.09,1.95095478]
[1768492487527,17.62070846,142.15,142.09,1.95095478]
[1768492488058,2.00592832,142.14,142.09,1.95095478]
[1768492489052,2.00592832,142.14,142.09,8.98865936]
[1768492490156,8.57992243,142.15,142.1,1.95095478]
[1768492490375,0.43,142.15,142.1,1.92095478]
[1768492490554,2.43592832,142.15,142.1,1.92095478]
[1768492490758,2.43592832,142.15,142.1,7.03709465]
[1768492491559,0.43,142.15,142.1,7.03709465]
[1768492492255,0.43,142.15,142.1,9.11357408]
[1768492492833,2.50609934,142.15,142.1,9.11357408]
[1768492493034,10.65602177,142.15,142.1,9.11357408]
[1768492493549,2.50609934,142.15,142.1,9.11357408]
[1768492493748,0.43,142.15,142.11,2.07647943]
[1768492493947,2.27609934,142.2,142.14,2.07647943]
[1768492494247,2.07609934,142.18,142.14,2.07647943]
[1768492494444,10.22602177,142.16,142.1,9.11357408]
[1768492494961,17.26047442,142.16,142.1,9.11357408]
[1768492495343,22.34524999,142.16,142.1,9.11357408]
[1768492495753,2.07609934,142.16,142.11,2.07647943]
[1768492495944,15.31079734,142.16,142.11,2.07647943]
[1768492496152,2.07609934,142.16,142.11,2.07647943]
[1768492496672,15.31079734,142.15,142.09,9.11408516]
[1768492496870,15.31079734,142.14,142.09,9.11408516]
[1768492497343,2.07609934,142.14,142.09,9.11408516]
[1768492497538,15.31079734,142.14,142.09,9.11408516]
[1768492498041,2.07609934,142.14,142.09,9.11408516]
[1768492498863,22.34613856,142.14,142.09,9.11408516]
[1768492499068,22.34613856,142.14,142.09,2.07647943]
[1768492499271,9.11144056,142.14,142.09,2.07647943]
[1768492499449,22.34613856,142.14,142.09,2.07647943]
[1768492499848,15.31079734,142.12,142.07,9.11503149]
[1768492500266,2.07609934,142.13,142.08,2.07647943]
[1768492500472,15.31079734,142.13,142.08,2.07647943]
[1768492500647,2.07609934,142.13,142.09,2.07647943]
[1768492500848,15.31079734,142.15,142.1,2.07647943]
[1768492501174,2.51509935,142.19,142.13,2.07647943]
[1768492501466,0.43900001,142.19,142.15,2.07647943]
[1768492501641,0.43900001,142.19,142.17,2.07647943]
[1768492502770,0.2,142.2,142.18,2.07647943]
[1768492503143,0.2,142.21,142.19,2.07647943]
[1768492504263,0.2,142.21,142.16,17.58511856]
[1768492504264,0.2,142.21,142.17,9.11014006]
[1768492505948,0.2,142.21,142.17,2.07647943]
[1768492506145,15.31079734,142.2,142.15,2.07647943]
[1768492506371,2.07609934,142.2,142.15,2.07647943]
[1768492506578,2.07609934,142.2,142.15,9.11097684]
[1768492506880,20.4668943,142.21,142.17,9.11023681]
[1768492506881,0.2,142.21,142.17,9.11023681]
[1768492507569,0.2,142.21,142.18,9.10946727]
[1768492508356,0.2,142.21,142.18,22.34416527]
[1768492508952,2.07609934,142.25,142.2,13.234698]
[1768492509275,2.07609934,142.24,142.18,24.61633289]
[1768492509478,2.07609934,142.23,142.18,20.26768584]
[1768492510171,2.07609934,142.23,142.17,19.87362405]
[1768492510378,2.07609934,142.23,142.18,7.03324074]
[1768492510876,2.07609934,142.23,142.17,13.234698]
[1768492510877,2.07609934,142.2,142.15,19.87449353]
[1768492511066,2.07609934,142.2,142.16,7.03431864]
[1768492511376,2.07609934,142.16,142.11,2.07647943]
[1768492511673,15.31079734,142.18,142.13,2.07647943]
[1768492511973,2.07609934,142.18,142.13,2.07647943]
[1768492512162,2.07609934,142.18,142.13,15.31117743]
[1768492512358,2.07609934,142.18,142.13,2.07647943]
[1768492512572,2.07609934,142.16,142.11,15.31117743]
[1768492512773,2.07609934,142.16,142.12,2.07647943]
[1768492513388,13.234698,142.18,142.12,9.11277783]
[1768492513683,15.31079734,142.17,142.12,9.11277783]
[1768492513881,22.34476304,142.17,142.12,2.07647943]
[1768492514180,15.31079734,142.17,142.12,9.11277002]
[1768492514684,15.31079734,142.17,142.12,2.07647943]
[1768492515058,2.07609934,142.14,142.08,19.67216928]
[1768492515257,2.07609934,142.14,142.09,2.07647943]
[1768492515452,2.07609934,142.16,142.1,9.11346527]
[1768492515785,15.31079734,142.16,142.11,2.07647943]
[1768492516457,22.34515565,142.16,142.11,2.07647943]
[1768492517064,2.07609934,142.16,142.12,2.07647943]
[1768492517372,15.31079734,142.17,142.11,22.34774543]
[1768492517777,15.31079734,142.17,142.11,39.93975162]
[1768492518284,15.31079734,142.17,142.11,26.70505362]
[1768492518586,2.07609934,142.17,142.12,15.31117743]
[1768492519275,2.07609934,142.17,142.12,2.07647943]
[1768492519792,2.07609934,142.17,142.13,7.03581228]
[1768492521760,2.06669636,142.15,142.11,7.03650751]
[1768492522084,2.06669636,142.15,142.11,9.00231424]
[1768492522683,2.06669636,142.15,142.11,7.03650751]
[1768492523402,2.06669636,142.15,142.11,9.00231424]
[1768492524469,2.06669636,142.15,142.11,22.23701224]
[1768492524692,2.06669636,142.15,142.11,1.96580673]
[1768492525478,2.02555834,142.17,142.12,15.1716884]
[1768492526183,2.02555834,142.16,142.12,1.9369904]
[1768492526598,2.02555834,142.16,142.12,8.97322443]
[1768492528287,2.02555834,142.16,142.12,1.9369904]
[1768492529485,2.02555834,142.16,142.12,8.97320489]
[1768492529994,2.02555834,142.18,142.14,1.9369904]
[1768492530166,22.29283206,142.2,142.15,1.9369904]
[1768492530369,22.29283206,142.2,142.15,1.9069904]
[1768492530370,2.02555834,142.19,142.15,1.9069904]
[1768492530770,2.02555834,142.21,142.15,20.26945924]
[1768492530991,2.02555834,142.21,142.15,19.87476124]
[1768492531297,0.44699999,142.22,142.19,13.234698]
[1768492531486,0.44699999,142.22,142.2,13.234698]
[1768492531688,0.44699999,142.22,142.19,13.234698]
[1768492532070,0.44699999,142.22,142.2,13.234698]
[1768492532271,0.2,142.26,142.21,13.234698]
[1768492532467,0.2,142.26,142.21,22.2033082]
[1768492532981,0.2,142.26,142.22,15.1716884]
[1768492533185,0.2,142.26,142.23,1.9369904]
[1768492533573,0.2,142.26,142.24,15.1716884]
[1768492533768,0.2,142.27,142.25,1.9369904]
[1768492535293,0.2,142.27,142.24,20.26485327]
[1768492535294,0.2,142.27,142.24,22.20184367]
[1768492537172,0.2,142.27,142.24,8.96714567]
[1768492537995,0.2,142.27,142.24,22.20184367]
[1768492538498,0.2,142.27,142.24,8.96714567]
[1768492538799,0.2,142.27,142.24,22.20184367]
[1768492539496,0.2,142.27,142.25,13.234698]
[1768492539801,0.2,142.27,142.24,22.20184367]
[1768492541279,0.2,142.27,142.23,7.03073086]
[1768492541499,2.02555834,142.26,142.21,1.9369904]
[1768492541686,2.02555834,142.26,142.21,15.1716884]
[1768492542097,2.02555834,142.26,142.22,1.9369904]
[1768492542392,2.02555834,142.26,142.22,22.20304449]
[1768492542802,2.02555834,142.26,142.21,20.26636195]
[1768492542980,2.02555834,142.26,142.21,22.20335235]
[1768492543180,2.02555834,142.26,142.22,1.9369904]
[1768492543502,2.02555834,142.26,142.22,22.2028798]
[1768492543795,19.73920547,142.27,142.22,22.2028798]
[1768492544001,7.02859461,142.28,142.22,22.2028798]
[1768492544194,20.26329261,142.28,142.22,22.2028798]
[1768492544598,13.234698,142.27,142.22,22.2028798]
[1768492544788,7.02859461,142.28,142.23,1.9369904]
[1768492544989,13.234698,142.28,142.23,1.9369904]
[1768492545605,20.2632968,142.28,142.23,1.9369904]
[1768492545905,22.28885514,142.28,142.23,1.9369904]
[1768492546083,2.02555834,142.27,142.23,1.9369904]
[1768492548109,2.02555834,142.29,142.25,1.9369904]
[1768492548287,0.2,142.3,142.26,1.9369904]
[1768492548489,0.2,142.3,142.26,15.1716884]
[1768492549403,0.2,142.3,142.27,13.234698]
[1768492549579,2.02555834,142.27,142.23,8.96762421]
[1768492549783,9.05571109,142.25,142.19,1.9369904]
[1768492549996,9.05448614,142.27,142.2,1.9369904]
[1768492550208,2.02555834,142.27,142.21,15.1716884]
[1768492550441,19.84811254,142.29,142.22,1.9369904]
[1768492550585,13.234698,142.28,142.23,1.9369904]
[1768492550909,28.08025634,142.29,142.24,1.93381784]
[1768492551085,15.26025634,142.29,142.24,1.93381784]
[1768492551628,15.26025634,142.29,142.23,1.93381784]
[1768492551629,1.95997271,142.28,142.23,1.93381784]
[1768492551798,15.19467071,142.28,142.23,1.93381784]
[1768492552002,15.19467071,142.28,142.23,8.96453695]
[1768492552897,15.19467071,142.27,142.22,7.03133062]
[1768492553102,1.95997271,142.27,142.21,15.16851584]
[1768492553318,15.19467071,142.27,142.21,15.16851584]
[1768492553616,1.95997271,142.26,142.21,8.96555227]
[1768492553817,15.19467071,142.26,142.21,8.96555227]
[1768492554022,1.95997271,142.27,142.22,8.96505771]
[1768492554196,1.95997271,142.26,142.22,1.93381784]
[1768492554398,15.19467071,142.25,142.2,8.96598694]
[1768492554608,1.95997271,142.25,142.21,7.0316363]
[1768492554809,15.19467071,142.25,142.2,8.96596864]
[1768492555924,13.234698,142.25,142.21,7.03170143]
[1768492556129,7.22753444,142.3,142.25,1.93381784]
[1768492556318,13.234698,142.29,142.23,1.93381784]
[1768492556626,7.22753444,142.3,142.23,1.93381784]
[1768492556823,13.234698,142.27,142.21,1.93381784]
[1768492557202,24.79605165,142.3,142.21,1.93381784]
[1768492557531,8.13125372,142.27,142.22,1.93381784]
[1768492557907,8.13125372,142.26,142.22,1.93381784]
[1768492558221,7.02932515,142.27,142.23,1.93381784]
[1768492558424,8.13125372,142.27,142.23,1.93381784]
[1768492558926,0.38631996,142.29,142.23,1.93381784]
[1768492559128,8.51757368,142.28,142.23,1.93381784]
[1768492559332,3.80106018,142.28,142.23,1.93381784]
[1768492559623,7.41180003,142.29,142.24,1.93381784]
[1768492560016,10.82654025,142.29,142.24,1.93381784]